fUST/lending_fUST_20240520
["ID","MTS","AMOUNT","RATE_DAILY","PERIOD"]
[327524730,1716156271156,500.0,0.00045753,37]
[327524731,1716156271475,500.0,0.00046027,38]
[327524732,1716156271788,500.0,0.00046301,39]
[327524733,1716156272053,500.0,0.00046575,40]
[327524734,1716156272380,500.0,0.00046849,41]
[327524735,1716156272667,500.0,0.00047123,42]
[327524736,1716156272921,500.0,0.00047397,43]
[327524737,1716156273180,620.72876867,0.00047671,44]
[327524738,1716156278594,500.0,0.00043835,30]
[327524739,1716156278860,166.50788339,0.00044109,31]
[327524740,1716156286184,500.0,0.00043835,30]
[327524741,1716156286457,500.0,0.00044109,31]
[327524742,1716156286725,500.0,0.00044383,32]
[327524743,1716156287009,500.0,0.00044657,33]
[327524744,1716156287280,500.0,0.00044931,34]
[327524745,1716156287538,500.0,0.00045205,35]
[327524746,1716156287812,500.0,0.00045479,36]
[327524747,1716156288083,500.0,0.00045753,37]
[327524748,1716156288404,500.0,0.00046027,38]
[327524749,1716156288671,500.0,0.00046301,39]
[327524750,1716156288942,500.0,0.00046575,40]
[327524751,1716156289211,500.0,0.00046849,41]
[327524752,1716156289490,500.0,0.00047123,42]
[327524753,1716156289963,500.0,0.00047397,43]
[327524754,1716156290245,500.0,0.00047671,44]
[327524755,1716156290501,500.0,0.00047945,45]
[327524756,1716156290791,500.0,0.00048219,46]
[327524757,1716156291097,500.0,0.00048493,47]
[327524758,1716156291406,500.0,0.00048767,48]
[327524759,1716156291669,243.31,0.00049041,49]
[327524760,1716156293242,500.0,0.00043835,30]
[327524761,1716156293539,500.0,0.00044109,31]
[327524762,1716156293645,500.0,0.00043835,30]
[327524763,1716156293808,500.0,0.00044383,32]
[327524764,1716156293920,500.0,0.00044109,31]
[327524765,1716156294086,500.0,0.00044657,33]
[327524766,1716156294184,500.0,0.00044383,32]
[327524767,1716156294365,500.0,0.00044931,34]
[327524768,1716156294458,500.0,0.00044657,33]
[327524769,1716156294652,500.0,0.00045205,35]
[327524770,1716156294733,500.0,0.00044931,34]
[327524771,1716156294918,500.0,0.00045479,36]
[327524772,1716156295048,500.0,0.00045205,35]
[327524773,1716156295311,500.0,0.00045753,37]
[327524774,1716156295464,500.0,0.00046027,38]
[327524775,1716156295653,500.0,0.00045479,36]
[327524776,1716156295727,500.0,0.00046301,39]
[327524777,1716156295988,500.0,0.00046575,40]
[327524778,1716156296247,500.0,0.00046849,41]
[327524779,1716156296277,500.0,0.00045753,37]
[327524780,1716156296520,500.0,0.00047123,42]
[327524781,1716156296551,500.0,0.00046027,38]
[327524782,1716156296774,500.0,0.00047397,43]
[327524783,1716156296814,500.0,0.00046301,39]
[327524784,1716156297075,500.0,0.00047671,44]
[327524785,1716156297106,500.0,0.00046575,40]
[327524786,1716156297323,500.0,0.00047945,45]
[327524787,1716156297354,500.0,0.00046849,41]
[327524788,1716156298854,500.0,0.00048219,46]
[327524789,1716156298883,500.0,0.00047123,42]
[327524790,1716156299075,500.0,0.00047397,43]
[327524791,1716156299105,500.0,0.00048493,47]
[327524792,1716156299340,500.0,0.00047671,44]
[327524793,1716156299372,500.0,0.00048767,48]
[327524794,1716156299603,500.0,0.00047945,45]
[327524795,1716156299686,539.47,0.00049041,49]
[327524796,1716156299903,500.0,0.00048219,46]
[327524797,1716156299954,500.0,0.00043835,30]
[327524798,1716156300175,271.0624598,0.00048493,47]
[327524799,1716156300236,448.3316424,0.00044109,31]
[327524800,1716156323244,500.0,0.00043835,30]
[327524801,1716156323523,500.0,0.00044109,31]
[327524802,1716156323810,500.0,0.00044383,32]
[327524803,1716156324439,500.0,0.00044657,33]
[327524804,1716156324724,500.0,0.00044931,34]
[327524805,1716156325008,500.0,0.00045205,35]
[327524806,1716156325259,500.0,0.00043835,30]
[327524807,1716156325298,500.0,0.00045479,36]
[327524808,1716156325527,500.0,0.00044109,31]
[327524809,1716156325561,500.0,0.00045753,37]
[327524810,1716156325791,500.0,0.00044383,32]
[327524811,1716156325822,500.0,0.00046027,38]
[327524812,1716156326073,500.0,0.00046301,39]
[327524813,1716156326104,500.0,0.00044657,33]
[327524814,1716156326356,441.9,0.00044931,34]
[327524815,1716156326390,500.0,0.00046575,40]
[327524816,1716156326643,340.89,0.00046849,41]
[327524817,1716156328627,500.0,0.00043835,30]
[327524818,1716156328873,500.0,0.00044109,31]
[327524819,1716156329150,500.0,0.00044383,32]
[327524820,1716156329409,500.0,0.00044657,33]
[327524821,1716156329705,500.0,0.00044931,34]
[327524822,1716156330250,500.0,0.00045205,35]
[327524823,1716156330441,500.0,0.00043835,30]
[327524824,1716156330512,356.27,0.00045479,36]
[327524825,1716156330722,309.84,0.00044109,31]
[327524826,1716156332199,722.26461689,0.00048398,61]
[327524827,1716156344987,500.0,0.00043835,30]
[327524828,1716156345255,500.0,0.00044109,31]
[327524829,1716156345526,500.0,0.00044383,32]
[327524830,1716156345812,500.0,0.00044657,33]
[327524831,1716156346258,500.0,0.00044931,34]
[327524832,1716156346536,500.0,0.00045205,35]
[327524833,1716156346797,500.0,0.00045479,36]
[327524834,1716156347083,500.0,0.00045753,37]
[327524835,1716156347395,500.0,0.00046027,38]
[327524836,1716156347650,500.0,0.00046301,39]
[327524837,1716156347908,500.0,0.00046575,40]
[327524838,1716156347939,500.0,0.00043835,30]
[327524839,1716156348247,500.0,0.00046849,41]
[327524840,1716156348339,472.32,0.00044109,31]
[327524841,1716156348505,500.0,0.00047123,42]
[327524842,1716156348770,500.0,0.00047397,43]
[327524843,1716156349038,500.0,0.00047671,44]
[327524844,1716156349300,500.0,0.00047945,45]
[327524845,1716156349588,500.0,0.00048219,46]
[327524846,1716156349918,500.0,0.00048493,47]
[327524847,1716156350149,500.0,0.00048767,48]
[327524848,1716156350477,500.0,0.00049041,49]
[327524849,1716156350702,500.0,0.00049315,120]
[327524850,1716156350971,500.0,0.00049589,120]
[327524851,1716156351248,543.04,0.00049863,120]
[327524852,1716156355562,500.0,0.00043835,30]
[327524853,1716156356399,1491.65,0.00043835,30]
[327524854,1716156356666,1491.65,0.00044109,31]
[327524855,1716156356938,1491.65,0.00044383,32]
[327524856,1716156357209,1491.65,0.00044657,33]
[327524857,1716156357477,1491.65,0.00044931,34]
[327524858,1716156358719,1491.65,0.00045205,35]
[327524859,1716156359017,1491.65,0.00045479,36]
[327524860,1716156359287,1491.65,0.00045753,37]
[327524861,1716156359571,1491.65,0.00046027,38]
[327524862,1716156359841,1491.65,0.00046301,39]
[327524863,1716156360170,1491.65,0.00046575,40]
[327524864,1716156360414,1491.65,0.00046849,41]
[327524865,1716156360720,1491.65,0.00047123,42]
[327524866,1716156360982,1491.65,0.00047397,43]
[327524867,1716156361106,500.0,0.00043835,30]
[327524868,1716156361265,1491.65,0.00047671,44]
[327524869,1716156361374,500.0,0.00044109,31]
[327524870,1716156361540,1491.65,0.00047945,45]
[327524871,1716156361650,500.0,0.00044383,32]
[327524872,1716156361831,1491.65,0.00048219,46]
[327524873,1716156361924,500.0,0.00044657,33]
[327524874,1716156362180,1491.65,0.00048493,47]
[327524875,1716156362211,500.0,0.00044931,34]
[327524876,1716156362464,1491.65,0.00048767,48]
[327524877,1716156362494,500.0,0.00045205,35]
[327524878,1716156362747,1491.65,0.00049041,49]
[327524879,1716156362778,500.0,0.00045479,36]
[327524880,1716156363028,1491.65,0.00049315,120]
[327524881,1716156363057,500.0,0.00045753,37]
[327524882,1716156363333,500.0,0.00046027,38]
[327524883,1716156363366,1491.65,0.00049589,120]
[327524884,1716156363613,500.0,0.00046301,39]
[327524885,1716156363645,1491.65,0.00049863,120]
[327524886,1716156363900,500.0,0.00046575,40]
[327524887,1716156363932,1491.67,0.00050136,120]
[327524888,1716156364326,500.0,0.00043835,30]
[327524889,1716156364491,500.0,0.00046849,41]
[327524890,1716156364769,500.0,0.00047123,42]
[327524891,1716156365040,500.0,0.00047397,43]
[327524892,1716156365335,240.36,0.00047671,44]
[327524893,1716156369082,600.05914449,0.00043835,30]
[327524894,1716156376270,500.0,0.00043835,21]
[327524895,1716156376544,500.0,0.00044109,21]
[327524896,1716156376644,151.0,0.00045,120]
[327524897,1716156376808,500.0,0.00044383,21]
[327524898,1716156377090,500.0,0.00044657,21]
[327524899,1716156377390,500.0,0.00044931,21]
[327524900,1716156377538,151.0,0.00046411,120]
[327524901,1716156377663,500.0,0.00045205,21]
[327524902,1716156377931,500.0,0.00045479,21]
[327524903,1716156378192,500.0,0.00045753,21]
[327524904,1716156378276,151.0,0.00047808,120]
[327524905,1716156378464,500.0,0.00046027,21]
[327524906,1716156378693,500.0,0.00043835,30]
[327524907,1716156378740,500.0,0.00046301,21]
[327524908,1716156378845,151.0,0.00049205,120]
[327524909,1716156378992,500.0,0.00044109,31]
[327524910,1716156379049,500.0,0.00046575,21]
[327524911,1716156379336,500.0,0.00044383,32]
[327524912,1716156379620,500.0,0.00044657,33]
[327524913,1716156379650,500.0,0.00046849,21]
[327524914,1716156379741,151.0,0.00050603,120]
[327524915,1716156379807,611.27,0.00043835,30]
[327524916,1716156379883,500.0,0.00044931,34]
[327524917,1716156379951,500.0,0.00047123,21]
[327524918,1716156380203,500.0,0.00045205,35]
[327524919,1716156380389,151.0,0.00052,120]
[327524920,1716156380594,500.0,0.00045479,36]
[327524921,1716156380735,500.0,0.00047397,21]
[327524922,1716156380875,500.0,0.00045753,37]
[327524923,1716156381020,500.0,0.00047671,21]
[327524924,1716156381150,500.0,0.00046027,38]
[327524925,1716156381296,500.0,0.00047945,21]
[327524926,1716156381445,500.0,0.00046301,39]
[327524927,1716156381607,500.0,0.00048219,21]
[327524928,1716156381716,537.57422904,0.00046575,40]
[327524929,1716156381861,500.0,0.00048493,21]
[327524930,1716156381902,500.0,0.00043835,30]
[327524931,1716156382135,500.0,0.00048767,21]
[327524932,1716156382180,500.0,0.00044109,31]
[327524933,1716156382409,500.0,0.00049041,21]
[327524934,1716156382452,584.52,0.00044383,32]
[327524935,1716156382694,500.0,0.00049315,21]
[327524936,1716156382979,500.0,0.00049589,21]
[327524937,1716156383305,314.05,0.00049863,21]
[327524938,1716156384513,845.14,0.00043835,30]
[327524939,1716156384794,845.14,0.00044109,31]
[327524940,1716156385070,845.14,0.00044383,32]
[327524941,1716156385678,845.14,0.00044657,33]
[327524942,1716156385968,845.14,0.00044931,34]
[327524943,1716156386250,845.14,0.00045205,35]
[327524944,1716156386558,845.14,0.00045479,36]
[327524945,1716156386830,845.14,0.00045753,37]
[327524946,1716156387084,845.14,0.00046027,38]
[327524947,1716156387375,845.14,0.00046301,39]
[327524948,1716156387744,500.0,0.00043835,30]
[327524949,1716156387995,370.92113487,0.00044109,31]
[327524950,1716156388050,845.14,0.00046575,40]
[327524951,1716156388320,845.14,0.00046849,41]
[327524952,1716156388584,845.14,0.00047123,42]
[327524953,1716156388910,845.14,0.00047397,43]
[327524954,1716156389335,845.14,0.00047671,44]
[327524955,1716156389804,845.14,0.00047945,45]
[327524956,1716156390073,845.14,0.00048219,46]
[327524957,1716156390350,845.14,0.00048493,47]
[327524958,1716156390618,845.14,0.00048767,48]
[327524959,1716156390928,845.14,0.00049041,49]
[327524960,1716156391248,845.14,0.00049315,120]
[327524961,1716156391510,845.14,0.00049589,120]
[327524962,1716156391845,845.14,0.00049863,120]
[327524963,1716156392181,845.18,0.00050136,120]
[327524964,1716156392645,500.0,0.00043835,30]
[327524965,1716156392930,500.0,0.00044109,31]
[327524966,1716156396784,500.0,0.00043835,30]
[327524967,1716156397050,500.0,0.00044109,31]
[327524968,1716156397643,500.0,0.00044383,32]
[327524969,1716156397917,500.0,0.00044657,33]
[327524970,1716156398183,500.0,0.00044931,34]
[327524971,1716156398439,500.0,0.00045205,35]
[327524972,1716156398696,500.0,0.00045479,36]
[327524973,1716156398947,500.0,0.00045753,37]
[327524974,1716156399219,500.0,0.00046027,38]
[327524975,1716156401048,500.0,0.00043835,30]
[327524976,1716156401327,168.06541875,0.00044109,31]
[327524977,1716156407990,504.44651926,0.00043835,30]
[327524979,1716156410417,500.0,0.00043835,30]
[327524980,1716156410693,500.0,0.00044109,31]
[327524981,1716156411003,500.0,0.00044383,32]
[327524982,1716156411287,500.0,0.00044657,33]
[327524983,1716156411545,500.0,0.00044931,34]
[327524984,1716156411828,500.0,0.00045205,35]
[327524985,1716156412099,500.0,0.00045479,36]
[327524986,1716156412370,500.0,0.00045753,37]
[327524987,1716156412607,353.22736552,0.00046027,38]
[327524988,1716156414569,500.0,0.00043835,30]
[327524989,1716156414834,500.0,0.00044109,31]
[327524990,1716156416585,500.0,0.00043835,30]
[327524991,1716156416889,500.0,0.00044109,31]
[327524992,1716156417148,500.0,0.00044383,32]
[327524993,1716156417448,500.0,0.00044657,33]
[327524994,1716156418687,500.0,0.00044931,34]
[327524995,1716156418986,500.0,0.00045205,35]
[327524996,1716156419249,500.0,0.00043835,30]
[327524997,1716156419291,500.0,0.00045479,36]
[327524998,1716156419560,500.0,0.00045753,37]
[327524999,1716156419604,500.0,0.00044109,31]
[327525000,1716156419887,500.0,0.00046027,38]
[327525001,1716156419927,500.0,0.00044383,32]
[327525002,1716156420180,500.0,0.00044657,33]
[327525003,1716156420462,368.19143226,0.00044931,34]
[327525004,1716156423070,583.01,0.00043835,30]
[327525005,1716156423367,500.0,0.00046301,39]
[327525006,1716156425338,212.316877,0.00049315,120]
[327525007,1716156425497,502.98910556,0.00043835,30]
[327525008,1716156427768,500.0,0.00043835,30]
[327525009,1716156427810,500.0,0.00043835,30]
[327525010,1716156428084,208.11,0.00044109,31]
[327525011,1716156428224,500.0,0.00043835,30]
[327525012,1716156428388,500.0,0.00044109,31]
[327525013,1716156428501,500.0,0.00044109,31]
[327525014,1716156428663,500.0,0.00044383,32]
[327525015,1716156428796,500.0,0.00044383,32]
[327525016,1716156428988,500.0,0.00044657,33]
[327525017,1716156429055,286.28798469,0.00044657,33]
[327525018,1716156429254,500.0,0.00044931,34]
[327525019,1716156429515,500.0,0.00045205,35]
[327525020,1716156429793,500.0,0.00045479,36]
[327525021,1716156430390,500.0,0.00045753,37]
[327525022,1716156430676,500.0,0.00046027,38]
[327525023,1716156430956,500.0,0.00046301,39]
[327525024,1716156431300,500.0,0.00046575,40]
[327525025,1716156431510,500.0,0.00046849,41]
[327525026,1716156431799,500.0,0.00047123,42]
[327525027,1716156432155,500.0,0.00047397,43]
[327525028,1716156432439,234.96,0.00047671,44]
[327525029,1716156435101,500.0,0.00043835,30]
[327525030,1716156435373,500.0,0.00044109,31]
[327525031,1716156435965,500.0,0.00044383,32]
[327525032,1716156436249,500.0,0.00044657,33]
[327525033,1716156436855,500.0,0.00044931,34]
[327525034,1716156437138,500.0,0.00045205,35]
[327525035,1716156437430,500.0,0.00045479,36]
[327525036,1716156440666,500.0,0.00043835,30]
[327525037,1716156442916,180.94681436,0.0004221,28]
[327525038,1716156444693,500.0,0.00043835,30]
[327525039,1716156444962,500.0,0.00044109,31]
[327525040,1716156445216,500.0,0.00044383,32]
[327525041,1716156445481,500.0,0.00044657,33]
[327525042,1716156446165,500.0,0.00044931,34]
[327525043,1716156446519,500.0,0.00045205,35]
[327525044,1716156446806,500.0,0.00045479,36]
[327525045,1716156447073,500.0,0.00045753,37]
[327525046,1716156447362,500.0,0.00046027,38]
[327525047,1716156447618,500.0,0.00043835,30]
[327525048,1716156447659,500.0,0.00046301,39]
[327525049,1716156447868,500.0,0.00044109,31]
[327525050,1716156447929,500.0,0.00046575,40]
[327525051,1716156448143,411.69779331,0.00044383,32]
[327525052,1716156448234,500.0,0.00046849,41]
[327525053,1716156448488,500.0,0.00047123,42]
[327525054,1716156448775,500.0,0.00047397,43]
[327525055,1716156448949,500.0,0.00052,15]
[327525056,1716156449059,500.0,0.00047671,44]
[327525057,1716156449306,500.0,0.00047945,45]
[327525058,1716156449575,500.0,0.00048219,46]
[327525059,1716156449856,500.0,0.00048493,47]
[327525060,1716156450116,500.0,0.00048767,48]
[327525061,1716156450374,500.0,0.00049041,49]
[327525062,1716156450638,500.0,0.00049315,120]
[327525063,1716156450804,500.0,0.00043835,30]
[327525064,1716156451080,500.0,0.00044109,30]
[327525065,1716156451251,500.0,0.00049589,120]
[327525066,1716156451350,500.0,0.00044383,30]
[327525067,1716156451539,500.0,0.00049863,120]
[327525068,1716156451641,500.0,0.00044657,30]
[327525069,1716156451817,227.9040767,0.00050136,120]
[327525070,1716156451916,500.0,0.00044931,30]
[327525071,1716156452055,361.13230844,0.00048398,61]
[327525072,1716156452192,500.0,0.00045205,30]
[327525073,1716156452484,500.0,0.00045479,30]
[327525074,1716156452880,371.65452441,0.00045753,30]
[327525075,1716156453429,500.0,0.00043835,30]
[327525076,1716156456414,508.93,0.00043835,30]
[327525077,1716156456834,1058.79,0.00043835,30]
[327525078,1716156457128,1058.79,0.00044936,31]
[327525079,1716156457383,1058.79,0.00048397,32]
[327525080,1716156457665,1058.79,0.00048397,33]
[327525081,1716156457953,1058.79,0.00049999,120]
[327525082,1716156459888,500.0,0.00043835,30]
[327525083,1716156460165,500.0,0.00044109,31]
[327525084,1716156460435,500.0,0.00044383,32]
[327525085,1716156460702,500.0,0.00044657,33]
[327525086,1716156460973,500.0,0.00044931,34]
[327525087,1716156461236,500.0,0.00045205,35]
[327525088,1716156461535,500.0,0.00045479,36]
[327525089,1716156461835,500.0,0.00045753,37]
[327525090,1716156465207,500.0,0.00043835,30]
[327525091,1716156465488,500.0,0.00044109,30]
[327525092,1716156465732,500.0,0.00044383,30]
[327525093,1716156465983,500.0,0.00044657,30]
[327525094,1716156466265,455.80376935,0.00044931,30]
[327525095,1716156468494,500.0,0.00043835,30]
[327525096,1716156468758,500.0,0.00044109,31]
[327525097,1716156469072,500.0,0.00044383,32]
[327525098,1716156469324,258.96,0.00044657,33]
[327525099,1716156470824,500.0,0.00043835,30]
[327525100,1716156471090,500.0,0.00044109,31]
[327525101,1716156471378,500.0,0.00044383,32]
[327525102,1716156471694,500.0,0.00044657,33]
[327525103,1716156472020,500.0,0.00044931,34]
[327525104,1716156472220,500.0,0.00045205,35]
[327525105,1716156472528,500.0,0.00045479,36]
[327525106,1716156472809,500.0,0.00045753,37]
[327525107,1716156473072,500.0,0.00046027,38]
[327525108,1716156473354,500.0,0.00046301,39]
[327525109,1716156473615,500.0,0.00046575,40]
[327525110,1716156473664,999.0,0.00049999,120]
[327525111,1716156473925,500.0,0.00046849,41]
[327525112,1716156473976,999.0,0.00051369,120]
[327525113,1716156474386,285.94632547,0.00043835,30]
[327525114,1716156474521,500.0,0.00047123,42]
[327525115,1716156474821,500.0,0.00047397,43]
[327525116,1716156475228,500.0,0.00047671,44]
[327525117,1716156475503,500.0,0.00047945,45]
[327525118,1716156475780,500.0,0.00048219,46]
[327525119,1716156476052,500.0,0.00048493,47]
[327525120,1716156476319,500.0,0.00048767,48]
[327525121,1716156476602,500.0,0.00049041,49]
[327525122,1716156476888,500.0,0.00049315,120]
[327525123,1716156477489,500.0,0.00049589,120]
[327525124,1716156478707,286.03,0.00049863,120]
[327525125,1716156480959,500.0,0.00043835,30]
[327525126,1716156484495,500.0,0.00043835,30]
[327525127,1716156488836,500.0,0.00043835,30]
[327525128,1716156489092,500.0,0.00044109,31]
[327525129,1716156489363,500.0,0.00044383,32]
[327525130,1716156489627,500.0,0.00044657,33]
[327525131,1716156489916,500.0,0.00044931,34]
[327525132,1716156490035,500.0,0.00043835,30]
[327525133,1716156490166,500.0,0.00045205,35]
[327525134,1716156490297,500.0,0.00044109,31]
[327525135,1716156490461,500.0,0.00045479,36]
[327525136,1716156490879,500.0,0.00045753,37]
[327525137,1716156490922,500.0,0.00043835,30]
[327525138,1716156491042,500.0,0.00046027,38]
[327525139,1716156491086,500.0,0.00044109,31]
[327525140,1716156491307,500.0,0.00046301,39]
[327525141,1716156491348,500.0,0.00044383,32]
[327525142,1716156491573,500.0,0.00046575,40]
[327525143,1716156491634,500.0,0.00043835,30]
[327525144,1716156491672,500.0,0.00044657,33]
[327525145,1716156491891,648.44,0.00046849,41]
[327525146,1716156491932,500.0,0.00044109,31]
[327525147,1716156491971,500.0,0.00044931,34]
[327525148,1716156492184,500.0,0.00045205,35]
[327525149,1716156492345,500.0,0.00043835,30]
[327525150,1716156492467,500.0,0.00045479,36]
[327525151,1716156492603,500.0,0.00044109,31]
[327525152,1716156492744,500.0,0.00045753,37]
[327525153,1716156493349,500.0,0.00046027,38]
[327525154,1716156493640,500.0,0.00046301,39]
[327525155,1716156493934,500.0,0.00046575,40]
[327525156,1716156494236,500.0,0.00046849,41]
[327525157,1716156494534,500.0,0.00047123,42]
[327525158,1716156494841,151.81,0.00047397,43]
[327525159,1716156496330,500.0,0.00043835,30]
[327525160,1716156496617,500.0,0.00044109,31]
[327525161,1716156496883,500.0,0.00044383,32]
[327525162,1716156496966,500.0,0.00043835,30]
[327525163,1716156497139,500.0,0.00044657,33]
[327525164,1716156497279,500.0,0.00044109,31]
[327525165,1716156497413,500.0,0.00044931,34]
[327525166,1716156497589,500.0,0.00044383,32]
[327525167,1716156497702,500.0,0.00045205,35]
[327525168,1716156497853,500.0,0.00044657,33]
[327525169,1716156497896,465.95532778,0.00043835,30]
[327525170,1716156497963,500.0,0.00045479,36]
[327525171,1716156498121,500.0,0.00044931,34]
[327525172,1716156498249,500.0,0.00045753,37]
[327525173,1716156498399,500.0,0.00045205,35]
[327525174,1716156498508,500.0,0.00046027,38]
[327525175,1716156498689,500.0,0.00045479,36]
[327525176,1716156498788,500.0,0.00046301,39]
[327525177,1716156498976,639.28,0.00045753,37]
[327525178,1716156499066,500.0,0.00046575,40]
[327525179,1716156499383,500.0,0.00046849,41]
[327525180,1716156499688,175.02,0.00043835,30]
[327525181,1716156499791,248.09243055,0.00047123,42]
[327525182,1716156501886,2032.47,0.00052,15]
[327525183,1716156503276,500.0,0.00043835,30]
[327525184,1716156503535,500.0,0.00044109,31]
[327525185,1716156503814,500.0,0.00044383,32]
[327525186,1716156504114,500.0,0.00044657,33]
[327525187,1716156504410,500.0,0.00044931,34]
[327525188,1716156504888,500.0,0.00043835,30]
[327525189,1716156506660,500.0,0.00043835,30]
[327525190,1716156509969,1631.99,0.00043835,30]
[327525191,1716156510242,1631.99,0.00044109,31]
[327525192,1716156510513,1631.99,0.00044383,32]
[327525193,1716156510828,1631.99,0.00044657,33]
[327525194,1716156511118,1631.99,0.00044931,34]
[327525196,1716156511453,1631.99,0.00045205,35]
[327525197,1716156511736,1631.99,0.00045479,36]
[327525198,1716156512010,1631.99,0.00045753,37]
[327525199,1716156512283,588.93048341,0.00046027,38]
[327525279,1716156633508,-164.05437908,0.0002081,2]
[327525280,1716156633519,-6427.62352092,0.00020909,2]
[327525293,1716156638612,-1110.60864598,0.00020909,2]
[327525372,1716157834831,-170.68488,0.00020726,2]
[327525373,1716157834841,-3193.10483566,0.00020907,2]
[327525374,1716157834853,-5622.39094228,0.00020907,2]
[327525429,1716157838747,-1296.1,0.00020907,2]
[327525458,1716157846883,-899.40422206,0.00020907,2]
[327525459,1716157846893,-91.68644405,0.00020908,2]
[327525536,1716159038614,-258.75359852,0.00020585,2]
[327525584,1716159043457,-343.53943984,0.00020585,2]
[327525606,1716159046193,-714.14784375,0.00020585,2]
[327525607,1716159046206,-9694.55911789,0.00020585,2]
[327525608,1716159046216,-1875.29753568,0.00020586,2]
[327525609,1716159046225,-18.94334643,0.00020908,2]
[327525610,1716159046238,-284.64156576,0.00020908,2]
[327525611,1716159046248,-230.7699921,0.00020908,2]
[327525612,1716159046257,-231.36786414,0.00020908,2]
[327525738,1716160243522,-393.80537543,0.0001991,2]
[327525766,1716160325517,154.86062544,9.999e-05,2]
[327525770,1716160466591,4700.43,0.00016,2]
[327525808,1716161233169,-393.80537543,0.00019538,2]
[327525809,1716161233191,-198.0,0.0002,2]
[327525810,1716161233212,-309.276346,0.00020698,2]
[327525811,1716161233231,-155.56777019,0.00020904,2]
[327525812,1716161233251,-158.74778856,0.00020905,2]
[327525813,1716161233271,-294.77473183,0.00020905,2]
[327525814,1716161233290,-11011.0,0.00020905,2]
[327525815,1716161233310,-155.85306642,0.00020906,2]
[327525816,1716161233329,-32197.66818375,0.00020906,2]
[327525817,1716161233350,-1149.7256992,0.00020908,2]
[327525818,1716161233372,-186.86508832,0.00020908,2]